[Event "Late-Titled-Tuesday-Blitz-March-12-2024"]
[Site "Chess.com"]
[Date "2024.03.12"]
[Round "6"]
[White "Viktor_Poddubnyi"]
[Black "mortngabriel"]
[Result "1-0"]
[WhiteElo "2282"]
[BlackElo "2515"]
[TimeControl "180+1"]
[EndTime "15:06:43 PDT"]
[Termination "Viktor_Poddubnyi won by resignation"]

1. e4 {[%clk 0:02:59.6]} 1... c5 {[%clk 0:03:00]} 2. Nf3 {[%clk 0:02:59.3]} 2...
Nc6 {[%clk 0:03:00.1]} 3. d4 {[%clk 0:02:59.6]} 3... cxd4 {[%clk 0:03:00]} 4.
Nxd4 {[%clk 0:03:00.5]} 4... g6 {[%clk 0:03:00.4]} 5. c4 {[%clk 0:02:59.8]} 5...
Nf6 {[%clk 0:02:59.9]} 6. Nc3 {[%clk 0:02:59.1]} 6... d6 {[%clk 0:03:00]} 7. Be2
{[%clk 0:02:51.3]} 7... Nxd4 {[%clk 0:02:59.7]} 8. Qxd4 {[%clk 0:02:52.2]} 8...
Bg7 {[%clk 0:03:00.6]} 9. Bg5 {[%clk 0:02:52.1]} 9... O-O {[%clk 0:03:00.5]} 10.
Qd2 {[%clk 0:02:50.4]} 10... a5 {[%clk 0:02:56.8]} 11. O-O {[%clk 0:02:49.2]}
11... a4 {[%clk 0:02:55.7]} 12. Rad1 {[%clk 0:02:47.3]} 12... Be6 {[%clk
0:02:34.5]} 13. f4 {[%clk 0:02:30.5]} 13... Qa5 {[%clk 0:02:23.3]} 14. f5 {[%clk
0:02:15.7]} 14... gxf5 {[%clk 0:02:02.1]} 15. exf5 {[%clk 0:02:16.6]} 15... Bxf5
{[%clk 0:02:02.6]} 16. Bxf6 {[%clk 0:02:09.5]} 16... Bxf6 {[%clk 0:01:41.1]} 17.
Nd5 {[%clk 0:02:08.2]} 17... Bg6 {[%clk 0:01:13.7]} 18. Nxf6+ {[%clk 0:01:56.7]}
18... exf6 {[%clk 0:01:14.6]} 19. Qxa5 {[%clk 0:01:46.4]} 19... Rxa5 {[%clk
0:01:13.9]} 20. Rxd6 {[%clk 0:01:46.8]} 20... Re8 {[%clk 0:01:03.8]} 21. Bf3
{[%clk 0:01:38.3]} 21... Rc5 {[%clk 0:01:01.1]} 22. Bd5 {[%clk 0:01:20.7]} 22...
Re2 {[%clk 0:00:55.5]} 23. Rb6 {[%clk 0:00:59.5]} 23... Be4 {[%clk 0:00:40.5]}
24. Bxe4 {[%clk 0:00:40.7]} 24... Rxe4 {[%clk 0:00:40]} 25. b3 {[%clk 0:00:41]}
25... axb3 {[%clk 0:00:39.6]} 26. axb3 {[%clk 0:00:41.9]} 26... Re2 {[%clk
0:00:22.6]} 27. Rbxf6 {[%clk 0:00:40.1]} 27... Rb2 {[%clk 0:00:20.3]} 28. R6f3
{[%clk 0:00:36.6]} 28... b5 {[%clk 0:00:19]} 29. Rg3+ {[%clk 0:00:34.3]} 29...
Kf8 {[%clk 0:00:18.8]} 30. Rgf3 {[%clk 0:00:26]} 30... bxc4 {[%clk 0:00:18.2]}
31. Rxf7+ {[%clk 0:00:25.4]} 31... Kg8 {[%clk 0:00:18.2]} 32. bxc4 {[%clk
0:00:23.8]} 32... Rxc4 {[%clk 0:00:18.2]} 33. R7f3 {[%clk 0:00:22.7]} 33... Rg4
{[%clk 0:00:16.8]} 34. R3f2 {[%clk 0:00:18.7]} 34... Rxf2 {[%clk 0:00:16.2]} 35.
Rxf2 {[%clk 0:00:18.5]} 35... Rb4 {[%clk 0:00:17.1]} 36. g3 {[%clk 0:00:18.6]}
36... Kg7 {[%clk 0:00:17.3]} 37. Kg2 {[%clk 0:00:18.9]} 37... Kg6 {[%clk
0:00:17.7]} 38. h4 {[%clk 0:00:18.8]} 38... h5 {[%clk 0:00:17.5]} 39. Kh3 {[%clk
0:00:19.2]} 39... Rb1 {[%clk 0:00:16.8]} 40. Rf4 {[%clk 0:00:19.3]} 40... Rh1+
{[%clk 0:00:16.3]} 41. Kg2 {[%clk 0:00:19.8]} 41... Ra1 {[%clk 0:00:17.2]} 42.
Rc4 {[%clk 0:00:19.9]} 42... Ra2+ {[%clk 0:00:17.2]} 43. Kh3 {[%clk 0:00:20.3]}
43... Ra5 {[%clk 0:00:14.5]} 44. Rc6+ {[%clk 0:00:20.4]} 44... Kg7 {[%clk
0:00:14.8]} 45. Rd6 {[%clk 0:00:20.2]} 45... Rf5 {[%clk 0:00:14.6]} 46. Rd7+
{[%clk 0:00:19.7]} 46... Kg6 {[%clk 0:00:14.9]} 47. Rd4 {[%clk 0:00:20]} 47...
Kg7 {[%clk 0:00:14.8]} 48. Rf4 {[%clk 0:00:19.8]} 48... Re5 {[%clk 0:00:15.3]}
49. Rd4 {[%clk 0:00:19.8]} 49... Rf5 {[%clk 0:00:15.1]} 50. Rd6 {[%clk
0:00:19.6]} 50... Kf7 {[%clk 0:00:15.2]} 51. Rh6 {[%clk 0:00:18.6]} 51... Kg7
{[%clk 0:00:15.2]} 52. Rd6 {[%clk 0:00:18.7]} 52... Kf7 {[%clk 0:00:15.6]} 53.
Rc6 {[%clk 0:00:18.8]} 53... Kg7 {[%clk 0:00:16]} 54. Rc8 {[%clk 0:00:17.8]}
54... Kf7 {[%clk 0:00:16.3]} 55. Rc6 {[%clk 0:00:16.7]} 55... Kg7 {[%clk
0:00:16.7]} 56. Rc4 {[%clk 0:00:16.9]} 56... Kf7 {[%clk 0:00:17.1]} 57. Rf4
{[%clk 0:00:17.3]} 57... Kg6 {[%clk 0:00:13.4]} 58. Rxf5 {[%clk 0:00:16.9]}
58... Kxf5 {[%clk 0:00:14.3]} 59. Kh2 {[%clk 0:00:15.9]} 59... Ke4 {[%clk
0:00:13.5]} 60. Kg2 {[%clk 0:00:14.4]} 60... Ke3 {[%clk 0:00:13.1]} 61. g4
{[%clk 0:00:14.6]} 61... hxg4 {[%clk 0:00:10.9]} 62. Kg3 {[%clk 0:00:15]} 62...
Ke4 {[%clk 0:00:10.9]} 63. Kxg4 {[%clk 0:00:15.5]} 63... Ke5 {[%clk 0:00:11.5]}
64. Kg5 {[%clk 0:00:16]} 64... Ke6 {[%clk 0:00:12]} 65. Kg6 {[%clk 0:00:16.6]}
65... Ke7 {[%clk 0:00:12.5]} 66. Kg7 {[%clk 0:00:17.1]} 66... Ke6 {[%clk
0:00:12.6]} 67. h5 {[%clk 0:00:17.7]} 67... Kf5 {[%clk 0:00:13.5]} 68. h6 {[%clk
0:00:18.5]} 1-0

[Event "Late-Titled-Tuesday-Blitz-March-12-2024"]
[Site "Chess.com"]
[Date "2024.03.12"]
[Round "6"]
[White "ChessSwole"]
[Black "thesupera12"]
[Result "0-1"]
[WhiteElo "2680"]
[BlackElo "2458"]
[TimeControl "180+1"]
[EndTime "15:06:46 PDT"]
[Termination "thesupera12 won by resignation"]

1. e4 {[%clk 0:03:00.9]} 1... d5 {[%clk 0:02:55.8]} 2. exd5 {[%clk 0:02:57.9]}
2... Qxd5 {[%clk 0:02:56.7]} 3. Nc3 {[%clk 0:02:58.1]} 3... Qa5 {[%clk
0:02:51.4]} 4. Nf3 {[%clk 0:02:57.7]} 4... Nf6 {[%clk 0:02:50.9]} 5. d4 {[%clk
0:02:57.7]} 5... Bg4 {[%clk 0:02:51.5]} 6. Bd2 {[%clk 0:02:58]} 6... Nc6 {[%clk
0:02:50.5]} 7. d5 {[%clk 0:02:53.8]} 7... Nxd5 {[%clk 0:02:49.6]} 8. Nb5 {[%clk
0:02:54.1]} 8... Qb6 {[%clk 0:02:45.6]} 9. c4 {[%clk 0:02:53.6]} 9... O-O-O
{[%clk 0:02:18.5]} 10. cxd5 {[%clk 0:02:48.9]} 10... Rxd5 {[%clk 0:02:19.4]} 11.
Qb3 {[%clk 0:02:41.9]} 11... e6 {[%clk 0:02:09.7]} 12. Nc3 {[%clk 0:02:31.3]}
12... Bxf3 {[%clk 0:01:51.7]} 13. Qxb6 {[%clk 0:02:12.6]} 13... axb6 {[%clk
0:01:52.6]} 14. gxf3 {[%clk 0:02:12.3]} 14... Re5+ {[%clk 0:01:51.7]} 15. Be3
{[%clk 0:02:10.3]} 15... Nd4 {[%clk 0:01:45.1]} 16. O-O-O {[%clk 0:02:07.3]}
16... Nxf3 {[%clk 0:01:45]} 17. Be2 {[%clk 0:01:52.3]} 17... Nh4 {[%clk
0:01:42.3]} 18. Rhg1 {[%clk 0:01:37]} 18... Ng6 {[%clk 0:01:34.9]} 19. Rg4
{[%clk 0:01:29.2]} 19... Be7 {[%clk 0:01:30]} 20. Ra4 {[%clk 0:01:29]} 20... Ra5
{[%clk 0:01:28.9]} 21. Rxa5 {[%clk 0:01:25.8]} 21... bxa5 {[%clk 0:01:29.8]} 22.
Nb5 {[%clk 0:01:16.5]} 22... Rd8 {[%clk 0:01:27.1]} 23. Rxd8+ {[%clk 0:01:08.4]}
23... Kxd8 {[%clk 0:01:27.4]} 24. Bf3 {[%clk 0:01:04.4]} 24... b6 {[%clk
0:01:26.8]} 25. Kc2 {[%clk 0:00:59.1]} 25... Ne5 {[%clk 0:01:25.4]} 26. Bg2
{[%clk 0:00:55]} 26... Ng4 {[%clk 0:01:24.9]} 27. h3 {[%clk 0:00:47.9]} 27...
Nxe3+ {[%clk 0:01:24.9]} 28. fxe3 {[%clk 0:00:48.8]} 28... Kd7 {[%clk
0:01:23.7]} 29. Kd3 {[%clk 0:00:46.6]} 29... c6 {[%clk 0:01:23.4]} 30. Nd4
{[%clk 0:00:46.2]} 30... c5 {[%clk 0:01:22.1]} 31. Nf3 {[%clk 0:00:39.3]} 31...
Bf6 {[%clk 0:01:19.5]} 32. b3 {[%clk 0:00:38.5]} 32... g5 {[%clk 0:01:12.6]} 33.
Nd2 {[%clk 0:00:38.4]} 33... h5 {[%clk 0:01:12.3]} 34. Bf3 {[%clk 0:00:35.9]}
34... h4 {[%clk 0:01:12.1]} 35. Kc4 {[%clk 0:00:31.5]} 35... Kc7 {[%clk
0:01:11.7]} 36. Kb5 {[%clk 0:00:28.3]} 36... Be7 {[%clk 0:01:11.2]} 37. Nc4
{[%clk 0:00:28]} 37... f5 {[%clk 0:01:09.8]} 38. Nxb6 {[%clk 0:00:28.2]} 38...
e5 {[%clk 0:01:09]} 39. Nd5+ {[%clk 0:00:20.7]} 39... Kd6 {[%clk 0:01:09.6]} 40.
Nxe7 {[%clk 0:00:21.4]} 40... Kxe7 {[%clk 0:01:10.5]} 41. Kxc5 {[%clk
0:00:21.9]} 41... e4 {[%clk 0:01:10.6]} 42. Bg2 {[%clk 0:00:20.9]} 42... g4
{[%clk 0:01:10.2]} 43. hxg4 {[%clk 0:00:20.5]} 43... fxg4 {[%clk 0:01:11.1]} 44.
Bxe4 {[%clk 0:00:20.9]} 44... g3 {[%clk 0:01:11.7]} 45. Bg2 {[%clk 0:00:21]}
45... Kf6 {[%clk 0:01:10]} 46. Kd5 {[%clk 0:00:19.9]} 46... Kf5 {[%clk
0:01:10.9]} 47. e4+ {[%clk 0:00:20.2]} 47... Kg4 {[%clk 0:01:11.3]} 48. e5
{[%clk 0:00:20.7]} 48... h3 {[%clk 0:01:11.7]} 49. Bxh3+ {[%clk 0:00:19]} 49...
Kxh3 {[%clk 0:01:12.6]} 50. e6 {[%clk 0:00:19.2]} 50... g2 {[%clk 0:01:13.4]}
51. e7 {[%clk 0:00:20]} 51... g1=Q {[%clk 0:01:13.6]} 52. e8=Q {[%clk
0:00:20.4]} 52... Qg2+ {[%clk 0:01:10.7]} 53. Qe4 {[%clk 0:00:19.3]} 53... Qxa2
{[%clk 0:01:11.4]} 54. Qd3+ {[%clk 0:00:18.3]} 54... Kg4 {[%clk 0:01:09.9]} 55.
Kc5 {[%clk 0:00:18.1]} 55... Qa3+ {[%clk 0:01:08.7]} 56. Kd5 {[%clk 0:00:16.2]}
56... Kg5 {[%clk 0:01:01.3]} 57. Qe3+ {[%clk 0:00:14.5]} 57... Kf6 {[%clk
0:00:59.8]} 58. Qe6+ {[%clk 0:00:14.6]} 58... Kg7 {[%clk 0:01:00.2]} 59. Qd7+
{[%clk 0:00:14.7]} 59... Kh8 {[%clk 0:00:48.5]} 60. Qe8+ {[%clk 0:00:14.3]}
60... Kh7 {[%clk 0:00:48.3]} 61. Qe4+ {[%clk 0:00:14]} 61... Kh8 {[%clk
0:00:47.7]} 62. Qd4+ {[%clk 0:00:13.3]} 62... Kg8 {[%clk 0:00:45.9]} 63. Qc4
{[%clk 0:00:12.4]} 63... Kf7 {[%clk 0:00:41.8]} 64. Kc6+ {[%clk 0:00:11.7]}
64... Kf6 {[%clk 0:00:31.5]} 65. Kb5 {[%clk 0:00:12.6]} 65... Qa1 {[%clk
0:00:15.4]} 66. Qc6+ {[%clk 0:00:12.3]} 66... Ke7 {[%clk 0:00:14.1]} 67. Qc7+
{[%clk 0:00:12]} 67... Ke8 {[%clk 0:00:14.2]} 68. Qxa5 {[%clk 0:00:12]} 68...
Qf1+ {[%clk 0:00:13.7]} 69. Kb4 {[%clk 0:00:11.6]} 69... Qe1+ {[%clk 0:00:13.7]}
70. Kc4 {[%clk 0:00:11.6]} 70... Qxa5 {[%clk 0:00:13.3]} 0-1

[Event "Late-Titled-Tuesday-Blitz-March-12-2024"]
[Site "Chess.com"]
[Date "2024.03.12"]
[Round "6"]
[White "Vladimir_Zakhartsov"]
[Black "BogdanDeac"]
[Result "0-1"]
[WhiteElo "2934"]
[BlackElo "3075"]
[TimeControl "180+1"]
[EndTime "15:07:04 PDT"]
[Termination "BogdanDeac won by resignation"]

1. d4 {[%clk 0:03:00.9]} 1... Nf6 {[%clk 0:02:59.7]} 2. c4 {[%clk 0:03:01.3]}
2... e6 {[%clk 0:03:00]} 3. Nf3 {[%clk 0:03:01.7]} 3... d5 {[%clk 0:03:00.1]} 4.
g3 {[%clk 0:03:02.2]} 4... dxc4 {[%clk 0:02:59.1]} 5. Bg2 {[%clk 0:03:02.6]}
5... Bd7 {[%clk 0:02:51.6]} 6. Ne5 {[%clk 0:02:58.4]} 6... Bc6 {[%clk
0:02:51.6]} 7. Nxc6 {[%clk 0:02:56.4]} 7... Nxc6 {[%clk 0:02:52.5]} 8. O-O
{[%clk 0:02:55.4]} 8... Qd7 {[%clk 0:02:52.5]} 9. e3 {[%clk 0:02:55]} 9... Rd8
{[%clk 0:02:52.5]} 10. Qa4 {[%clk 0:02:31.1]} 10... Nb4 {[%clk 0:02:51.3]} 11.
Qxd7+ {[%clk 0:02:14.5]} 11... Nxd7 {[%clk 0:02:38.9]} 12. Nd2 {[%clk
0:01:52.5]} 12... b5 {[%clk 0:02:17.5]} 13. a4 {[%clk 0:01:52.6]} 13... a6
{[%clk 0:02:17.5]} 14. axb5 {[%clk 0:01:45.2]} 14... axb5 {[%clk 0:02:18.4]} 15.
Ra7 {[%clk 0:01:45.2]} 15... c5 {[%clk 0:02:07.7]} 16. Rb7 {[%clk 0:01:38.3]}
16... cxd4 {[%clk 0:01:25.4]} 17. exd4 {[%clk 0:01:39.2]} 17... Rb8 {[%clk
0:01:21.8]} 18. Ra7 {[%clk 0:01:24.8]} 18... Nb6 {[%clk 0:00:42.9]} 19. Ne4
{[%clk 0:01:12.2]} 19... Nc8 {[%clk 0:00:24]} 20. Ra5 {[%clk 0:00:49.8]} 20...
Be7 {[%clk 0:00:23.4]} 21. Bf4 {[%clk 0:00:48.2]} 21... Rb6 {[%clk 0:00:23.2]}
22. Nc3 {[%clk 0:00:32.9]} 22... O-O {[%clk 0:00:20.6]} 23. Bc7 {[%clk
0:00:24.1]} 23... Ra6 {[%clk 0:00:20.5]} 24. Rxb5 {[%clk 0:00:23.3]} 24... Ra7
{[%clk 0:00:18.4]} 25. Ba5 {[%clk 0:00:17.4]} 25... Nd3 {[%clk 0:00:14.6]} 26.
Bb6 {[%clk 0:00:07.7]} 26... Rd7 {[%clk 0:00:09.9]} 27. Bc5 {[%clk 0:00:06.3]}
27... Nd6 {[%clk 0:00:07.1]} 28. Rb6 {[%clk 0:00:04.2]} 28... Nf5 {[%clk
0:00:06.9]} 29. Bxe7 {[%clk 0:00:03.7]} 29... Nxe7 {[%clk 0:00:06.9]} 30. Ne2
{[%clk 0:00:02.8]} 30... Nf5 {[%clk 0:00:06.6]} 31. d5 {[%clk 0:00:02]} 31...
exd5 {[%clk 0:00:06.1]} 32. Rd1 {[%clk 0:00:02]} 32... Ne7 {[%clk 0:00:05.9]}
33. Nd4 {[%clk 0:00:01.9]} 33... Rfd8 {[%clk 0:00:05.7]} 34. b3 {[%clk
0:00:02.2]} 34... Nc5 {[%clk 0:00:05]} 35. b4 {[%clk 0:00:01.7]} 35... Na4
{[%clk 0:00:05.3]} 36. Ra6 {[%clk 0:00:01.9]} 36... Nc3 {[%clk 0:00:05.9]} 37.
Rc1 {[%clk 0:00:02.6]} 37... Ne4 {[%clk 0:00:06.5]} 38. Bxe4 {[%clk 0:00:02.6]}
38... dxe4 {[%clk 0:00:06.9]} 39. Nb5 {[%clk 0:00:03.1]} 39... g6 {[%clk
0:00:05.8]} 40. Rxc4 {[%clk 0:00:03]} 40... f5 {[%clk 0:00:06.4]} 41. Rc7 {[%clk
0:00:02.6]} 41... Rxc7 {[%clk 0:00:05.7]} 42. Nxc7 {[%clk 0:00:03.5]} 42... Rb8
{[%clk 0:00:06.2]} 43. b5 {[%clk 0:00:02.9]} 43... Rb7 {[%clk 0:00:06.5]} 44. b6
{[%clk 0:00:03.3]} 44... Kf7 {[%clk 0:00:05.3]} 45. Nb5 {[%clk 0:00:03.3]} 45...
Ke6 {[%clk 0:00:05.4]} 46. Nc3 {[%clk 0:00:02.9]} 46... Nc8 {[%clk 0:00:04.6]}
47. Na4 {[%clk 0:00:02.6]} 47... Kd6 {[%clk 0:00:05.3]} 48. Ra8 {[%clk
0:00:02.8]} 48... Nxb6 {[%clk 0:00:05.1]} 49. Nxb6 {[%clk 0:00:03]} 49... Rxb6
{[%clk 0:00:06]} 50. Re8 {[%clk 0:00:02.9]} 50... Rb7 {[%clk 0:00:06]} 51. h4
{[%clk 0:00:03.1]} 51... Re7 {[%clk 0:00:06.4]} 52. Rg8 {[%clk 0:00:03.4]} 52...
Ke6 {[%clk 0:00:06.7]} 53. Kg2 {[%clk 0:00:03.6]} 53... Kf6 {[%clk 0:00:07.1]}
54. Ra8 {[%clk 0:00:03.9]} 54... Kg7 {[%clk 0:00:07.2]} 55. Ra6 {[%clk
0:00:03.8]} 55... Kh6 {[%clk 0:00:07.4]} 56. Kf1 {[%clk 0:00:04.2]} 56... Rb7
{[%clk 0:00:07.6]} 57. Kg2 {[%clk 0:00:04.5]} 57... Rb3 {[%clk 0:00:07.6]} 58.
Ra5 {[%clk 0:00:04.3]} 58... Rb2 {[%clk 0:00:06.8]} 59. Re5 {[%clk 0:00:03.9]}
59... Kh5 {[%clk 0:00:06.5]} 60. Re7 {[%clk 0:00:03.7]} 60... h6 {[%clk
0:00:06.3]} 61. Re6 {[%clk 0:00:04.2]} 61... g5 {[%clk 0:00:06]} 62. hxg5 {[%clk
0:00:04.9]} 62... hxg5 {[%clk 0:00:06.9]} 63. Re5 {[%clk 0:00:04]} 63... Kg4
{[%clk 0:00:07.1]} 64. Kf1 {[%clk 0:00:04.1]} 64... Ra2 {[%clk 0:00:06.6]} 65.
Kg1 {[%clk 0:00:04.2]} 65... Rb2 {[%clk 0:00:06]} 66. Kf1 {[%clk 0:00:04.6]}
66... f4 {[%clk 0:00:05.2]} 67. gxf4 {[%clk 0:00:03.5]} 67... Kf3 {[%clk
0:00:04.6]} 68. Kg1 {[%clk 0:00:01.5]} 68... gxf4 {[%clk 0:00:04.7]} 69. Rf5
{[%clk 0:00:01.6]} 69... Rb1+ {[%clk 0:00:04.6]} 70. Kh2 {[%clk 0:00:02.2]}
70... Rf1 {[%clk 0:00:05.2]} 71. Kh3 {[%clk 0:00:02.1]} 71... Rxf2 {[%clk
0:00:05.2]} 0-1

[Event "Late-Titled-Tuesday-Blitz-March-12-2024"]
[Site "Chess.com"]
[Date "2024.03.12"]
[Round "6"]
[White "guillembaches"]
[Black "1g60-1"]
[Result "1-0"]
[WhiteElo "2549"]
[BlackElo "2317"]
[TimeControl "180+1"]
[EndTime "15:07:04 PDT"]
[Termination "guillembaches won by resignation"]

1. Nf3 {[%clk 0:03:00.9]} 1... d5 {[%clk 0:02:59.3]} 2. d4 {[%clk 0:02:59.6]}
2... c6 {[%clk 0:02:59.7]} 3. Bg5 {[%clk 0:02:59.2]} 3... Nd7 {[%clk 0:02:56.6]}
4. Nbd2 {[%clk 0:02:57.6]} 4... Ngf6 {[%clk 0:02:56.5]} 5. e3 {[%clk 0:02:56.8]}
5... e6 {[%clk 0:02:55.3]} 6. Bd3 {[%clk 0:02:56.3]} 6... Be7 {[%clk 0:02:55.7]}
7. O-O {[%clk 0:02:55.4]} 7... b6 {[%clk 0:02:56.3]} 8. c3 {[%clk 0:02:52.5]}
8... Bb7 {[%clk 0:02:56.4]} 9. a3 {[%clk 0:02:49.8]} 9... h6 {[%clk 0:02:56.2]}
10. Bh4 {[%clk 0:02:49.6]} 10... O-O {[%clk 0:02:49.2]} 11. Qb1 {[%clk
0:02:44.5]} 11... c5 {[%clk 0:02:47.3]} 12. Ne5 {[%clk 0:02:44.5]} 12... Nxe5
{[%clk 0:02:46.6]} 13. dxe5 {[%clk 0:02:45.4]} 13... Nd7 {[%clk 0:02:47]} 14.
Bxe7 {[%clk 0:02:45.4]} 14... Qxe7 {[%clk 0:02:46.7]} 15. f4 {[%clk 0:02:45.5]}
15... f6 {[%clk 0:02:34.9]} 16. exf6 {[%clk 0:02:43.3]} 16... Qxf6 {[%clk
0:02:34]} 17. Bb5 {[%clk 0:02:34.1]} 17... Rad8 {[%clk 0:02:28.3]} 18. Nf3
{[%clk 0:02:24]} 18... Nb8 {[%clk 0:02:20.3]} 19. Qe1 {[%clk 0:02:08.6]} 19...
a6 {[%clk 0:02:15.4]} 20. Ba4 {[%clk 0:02:00.5]} 20... b5 {[%clk 0:02:13.3]} 21.
Bc2 {[%clk 0:02:00.5]} 21... Nd7 {[%clk 0:02:06.3]} 22. Qg3 {[%clk 0:01:58.4]}
22... d4 {[%clk 0:01:58.9]} 23. exd4 {[%clk 0:01:33.8]} 23... Bxf3 {[%clk
0:01:56.3]} 24. Qxf3 {[%clk 0:01:31.6]} 24... cxd4 {[%clk 0:01:56]} 25. Qe4
{[%clk 0:01:31.2]} 25... g6 {[%clk 0:01:52]} 26. cxd4 {[%clk 0:01:25.6]} 26...
Nb6 {[%clk 0:01:46.5]} 27. Rad1 {[%clk 0:01:19]} 27... Kg7 {[%clk 0:01:44.2]}
28. Bb3 {[%clk 0:01:11]} 28... Nd5 {[%clk 0:01:43.5]} 29. g3 {[%clk 0:01:07.6]}
29... Qf5 {[%clk 0:01:29.2]} 30. Qxf5 {[%clk 0:00:58.5]} 30... Rxf5 {[%clk
0:01:11.8]} 31. Rfe1 {[%clk 0:00:52.8]} 31... Rf6 {[%clk 0:01:07.5]} 32. Re5
{[%clk 0:00:47.8]} 32... a5 {[%clk 0:00:55.1]} 33. Rc1 {[%clk 0:00:43.8]} 33...
Rd7 {[%clk 0:00:46.6]} 34. Rc5 {[%clk 0:00:33.3]} 34... g5 {[%clk 0:00:43.8]}
35. fxg5 {[%clk 0:00:29.7]} 35... hxg5 {[%clk 0:00:44]} 36. Bxd5 {[%clk
0:00:27.9]} 36... exd5 {[%clk 0:00:40.2]} 37. Rxg5+ {[%clk 0:00:25.7]} 37... Kf8
{[%clk 0:00:30.3]} 38. Rgxd5 {[%clk 0:00:25]} 38... Rdf7 {[%clk 0:00:30.2]} 39.
Rc2 {[%clk 0:00:16.1]} 39... b4 {[%clk 0:00:25.5]} 40. axb4 {[%clk 0:00:15.9]}
40... axb4 {[%clk 0:00:25.5]} 41. Rb5 {[%clk 0:00:15.4]} 41... Rf1+ {[%clk
0:00:22.1]} 42. Kg2 {[%clk 0:00:15.5]} 42... Rd1 {[%clk 0:00:17.2]} 43. Rxb4
{[%clk 0:00:14.6]} 43... Rff1 {[%clk 0:00:16.1]} 44. Rf2+ {[%clk 0:00:14.4]}
44... Rxf2+ {[%clk 0:00:16.5]} 45. Kxf2 {[%clk 0:00:14.9]} 45... Rd2+ {[%clk
0:00:16.9]} 46. Kf3 {[%clk 0:00:14.3]} 46... Rxh2 {[%clk 0:00:15.8]} 47. Rb3
{[%clk 0:00:13.6]} 47... Ke7 {[%clk 0:00:15.4]} 48. Ke4 {[%clk 0:00:13.7]} 48...
Kd6 {[%clk 0:00:15.3]} 49. Rb6+ {[%clk 0:00:13.1]} 49... Kd7 {[%clk 0:00:15.5]}
50. Rg6 {[%clk 0:00:13.1]} 50... Rxb2 {[%clk 0:00:15.2]} 51. Kd5 {[%clk
0:00:12.6]} 51... Rb5+ {[%clk 0:00:13.9]} 52. Ke4 {[%clk 0:00:12.9]} 52... Rb1
{[%clk 0:00:13.8]} 53. g4 {[%clk 0:00:12.8]} 53... Re1+ {[%clk 0:00:13.3]} 54.
Kd5 {[%clk 0:00:13.1]} 54... Rd1 {[%clk 0:00:13.1]} 55. Rg7+ {[%clk 0:00:13.2]}
55... Ke8 {[%clk 0:00:12.7]} 56. g5 {[%clk 0:00:13.5]} 56... Kf8 {[%clk
0:00:12.3]} 57. Rg6 {[%clk 0:00:12.7]} 57... Kf7 {[%clk 0:00:12.1]} 58. Ra6
{[%clk 0:00:12.4]} 58... Rg1 {[%clk 0:00:11.8]} 59. g6+ {[%clk 0:00:12.4]} 59...
Kg7 {[%clk 0:00:09.3]} 60. Ke4 {[%clk 0:00:12.1]} 60... Re1+ {[%clk 0:00:03.9]}
61. Kd3 {[%clk 0:00:12.2]} 61... Rd1+ {[%clk 0:00:04]} 62. Kc4 {[%clk
0:00:12.4]} 62... Rc1+ {[%clk 0:00:04.3]} 63. Kd5 {[%clk 0:00:12.6]} 63... Rd1
{[%clk 0:00:04.6]} 64. Re6 {[%clk 0:00:12.3]} 64... Rd2 {[%clk 0:00:03.3]} 65.
Ke5 {[%clk 0:00:12.4]} 65... Re2+ {[%clk 0:00:03.2]} 66. Kd6 {[%clk 0:00:12.3]}
66... Rd2 {[%clk 0:00:03.6]} 67. d5 {[%clk 0:00:12.5]} 67... Kg8 {[%clk
0:00:03.8]} 68. Kc6 {[%clk 0:00:12.6]} 68... Kg7 {[%clk 0:00:04.4]} 69. d6
{[%clk 0:00:12.8]} 69... Rc2+ {[%clk 0:00:05.3]} 70. Kd7 {[%clk 0:00:13]} 70...
Rd2 {[%clk 0:00:05.4]} 71. Ke7 {[%clk 0:00:13.2]} 71... Ra2 {[%clk 0:00:04.5]}
72. d7 {[%clk 0:00:13.2]} 72... Rf2 {[%clk 0:00:04.4]} 73. d8=Q {[%clk
0:00:11.4]} 1-0